[Event "44th Chess Olympiad Women 2022"]
[Site "Chennai"]
[Date "2022.08.06"]
[Round "8.30"]
[White "Putar, Lara"]
[Black "Herrera, Marjorie"]
[Result "1-0"]
[WhiteElo "1969"]
[BlackElo "1760"]
[Annotator "NA RC"]
[PlyCount "63"]
[EventDate "2022.??.??"]
[TimeControl "60"]

1. d4 {[%emt 0:00:03]} Nf6 {[%emt 0:00:17]} 2. c4 {[%emt 0:00:05]} g6 {[%emt 0:
00:00]} 3. Nc3 {[%emt 0:00:06]} Bg7 {[%emt 0:00:16]} 4. e4 {[%emt 0:00:06]} d6
{[%emt 0:00:33]} 5. Be2 {[%emt 0:00:15]} O-O {[%emt 0:00:45]} 6. Be3 {[%emt 0:
00:00]} e5 {[%emt 0:00:57]} 7. d5 {[%emt 0:00:24]} Nbd7 {[%emt 0:03:19]} 8. g4
{[%emt 0:00:53]} a6 {[%emt 0:06:15]} 9. g5 {[%emt 0:01:54]} Ne8 {[%emt 0:01:08]
} 10. h4 {[%emt 0:01:44]} Rb8 {[%emt 0:07:47]} 11. h5 {[%emt 0:04:26]} c6 {
[%emt 0:04:46]} 12. hxg6 {[%emt 0:07:11]} fxg6 {[%emt 0:03:59]} 13. Nf3 {
[%emt 0:10:57]} Qa5 {[%emt 0:19:05]} 14. a3 {[%emt 0:09:02]} c5 {[%emt 0:06:07]
} 15. Nd2 {[%emt 0:11:37]} b5 {[%emt 0:11:58]} 16. Bg4 {[%emt 0:05:06]} Rf7 {
[%emt 0:14:44]} 17. Be6 {[%emt 0:08:04]} Nf8 {[%emt 0:00:38]} 18. Bxf7+ {
[%emt 0:00:51]} Kxf7 {[%emt 0:00:11]} 19. cxb5 {[%emt 0:04:52]} axb5 {[%emt 0:
00:00]} 20. a4 {[%emt 0:01:38]} bxa4 {[%emt 0:03:53]} 21. Rxa4 {[%emt 0:01:25]}
Qc7 {[%emt 0:02:16]} 22. Nc4 {[%emt 0:02:26]} Kg8 {[%emt 0:03:33]} 23. Kd2 {
[%emt 0:04:49]} Qe7 {[%emt 0:04:17]} 24. Na5 {[%emt 0:01:29]} Rxb2+ {[%emt 0:
00:00]} 25. Ke1 {[%emt 0:00:47]} Bd7 {[%emt 0:00:38]} 26. Nc6 {[%emt 0:01:02]}
Qf7 {[%emt 0:00:44]} 27. Ra7 {[%emt 0:01:15]} Bh8 {[%emt 0:00:25]} 28. Rh3 {
[%emt 0:02:35]} Ng7 {[%emt 0:00:29]} 29. Rf3 {[%emt 0:00:34]} Qe8 {[%emt 0:00:
00]} 30. Qa1 {[%emt 0:00:22]} Rb3 {[%emt 0:00:34]} 31. Ra8 {[%emt 0:00:11]} Bc8
{[%emt 0:00:17]} 32. Rxc8 {[%emt 0:00:09]} 1-0

[Event "44th Chess Olympiad Women 2022"]
[Site "Chennai"]
[Date "2022.08.06"]
[Round "8.30"]
[White "Zavala Galindo, Alejandra Beatriz"]
[Black "O`Gorman, Alice"]
[Result "1/2-1/2"]
[WhiteElo "1748"]
[BlackElo "2043"]
[Annotator "NA RC"]
[PlyCount "98"]
[EventDate "2022.??.??"]
[TimeControl "60"]

1. e4 {[%emt 0:00:03]} e5 {[%emt 0:00:08]} 2. Bc4 {[%emt 0:00:13]} Nf6 {
[%emt 0:00:29]} 3. d3 {[%emt 0:00:08]} Bc5 {[%emt 0:01:32]} 4. Nf3 {[%emt 0:00:
00]} Nc6 {[%emt 0:00:32]} 5. Bb3 {[%emt 0:03:23]} O-O {[%emt 0:00:54]} 6. O-O {
[%emt 0:01:53]} a6 {[%emt 0:00:48]} 7. c3 {[%emt 0:01:20]} Re8 {[%emt 0:02:47]}
8. Be3 {[%emt 0:04:29]} Ba7 {[%emt 0:02:47]} 9. h3 {[%emt 0:02:14]} d5 {
[%emt 0:03:49]} 10. Bxa7 {[%emt 0:06:07]} Rxa7 {[%emt 0:00:39]} 11. Nbd2 {
[%emt 0:01:12]} h6 {[%emt 0:05:21]} 12. Re1 {[%emt 0:04:32]} dxe4 {[%emt 0:00:
00]} 13. dxe4 {[%emt 0:00:32]} Nh5 {[%emt 0:03:52]} 14. Nc4 {[%emt 0:05:21]}
Qf6 {[%emt 0:02:13]} 15. Ne3 {[%emt 0:10:55]} Ne7 {[%emt 0:13:12]} 16. Ng4 {
[%emt 0:15:13]} Bxg4 {[%emt 0:00:37]} 17. hxg4 {[%emt 0:00:04]} Nf4 {[%emt 0:
00:00]} 18. g3 {[%emt 0:02:46]} Ne6 {[%emt 0:03:45]} 19. Kg2 {[%emt 0:03:51]}
Raa8 {[%emt 0:02:22]} 20. Qe2 {[%emt 0:01:57]} Ng5 {[%emt 0:07:18]} 21. Rad1 {
[%emt 0:05:09]} Rad8 {[%emt 0:01:16]} 22. Nxg5 {[%emt 0:09:59]} Qxg5 {[%emt 0:
00:00]} 23. Qc4 {[%emt 0:00:46]} Kh7 {[%emt 0:24:58]} 24. Qxc7 {[%emt 0:08:43]}
Rxd1 {[%emt 0:03:07]} 25. Rxd1 {[%emt 0:01:37]} Qxg4 {[%emt 0:03:26]} 26. Qxe5
{[%emt 0:02:15]} f6 {[%emt 0:05:56]} 27. Qe6 {[%emt 0:02:05]} Qxe6 {[%emt 0:00:
00]} 28. Bxe6 {[%emt 0:00:06]} Nc6 {[%emt 0:00:29]} 29. Bf5+ {[%emt 0:00:49]}
g6 {[%emt 0:00:54]} 30. Rd7+ {[%emt 0:00:24]} Re7 {[%emt 0:00:04]} 31. Rxe7+ {
[%emt 0:00:14]} Nxe7 {[%emt 0:00:03]} 32. Be6 {[%emt 0:00:12]} Kg7 {[%emt 0:00:
00]} 33. f4 {[%emt 0:01:27]} b6 {[%emt 0:01:25]} 34. Kf3 {[%emt 0:00:51]} g5 {
[%emt 0:00:55]} 35. Bc4 {[%emt 0:02:56]} b5 {[%emt 0:00:58]} 36. Bd5 {[%emt 0:
00:00]} f5 {[%emt 0:00:46]} 37. fxg5 {[%emt 0:00:41]} hxg5 {[%emt 0:00:15]} 38.
Bb7 {[%emt 0:00:17]} a5 {[%emt 0:00:41]} 39. Ba6 {[%emt 0:00:49]} b4 {[%emt 0:
00:00]} 40. cxb4 {[%emt 0:00:04]} axb4 {[%emt 0:00:03]} 41. a3 {[%emt 0:30:16]}
bxa3 {[%emt 0:30:23]} 42. bxa3 {[%emt 0:00:05]} Kf6 {[%emt 0:00:31]} 43. exf5 {
[%emt 0:00:25]} Kxf5 {[%emt 0:00:10]} 44. Bd3+ {[%emt 0:00:24]} Ke5 {[%emt 0:
00:00]} 45. a4 {[%emt 0:01:00]} Nc6 {[%emt 0:00:46]} 46. Bb5 {[%emt 0:00:18]}
Na5 {[%emt 0:00:36]} 47. Kg4 {[%emt 0:02:06]} Kf6 {[%emt 0:00:09]} 48. Kf3 {
[%emt 0:01:07]} Ke5 {[%emt 0:00:10]} 49. Kg4 {[%emt 0:01:17]} Kf6 {[%emt 0:00:
00]} 1/2-1/2

[Event "44th Chess Olympiad Women 2022"]
[Site "Chennai"]
[Date "2022.08.06"]
[Round "8.31"]
[White "Foudzi, Siti Zulaikha"]
[Black "Silva Rosas, Natalia"]
[Result "1-0"]
[WhiteElo "2188"]
[BlackElo "1780"]
[Annotator "NA RC"]
[PlyCount "73"]
[EventDate "2022.??.??"]
[TimeControl "60"]

1. e4 {[%emt 0:00:03]} c5 {[%emt 0:00:10]} 2. b3 {[%emt 0:00:05]} Nf6 {[%emt 0:
00:00]} 3. Nc3 {[%emt 0:01:10]} d6 {[%emt 0:01:14]} 4. Bb2 {[%emt 0:00:49]} g6
{[%emt 0:02:18]} 5. Bb5+ {[%emt 0:02:31]} Nbd7 {[%emt 0:01:17]} 6. f4 {[%emt 0:
00:00]} a6 {[%emt 0:00:51]} 7. Bxd7+ {[%emt 0:00:46]} Bxd7 {[%emt 0:04:58]} 8.
Qe2 {[%emt 0:00:29]} e5 {[%emt 0:04:25]} 9. Nf3 {[%emt 0:03:28]} Bg4 {[%emt 0:
00:00]} 10. O-O-O {[%emt 0:02:52]} Bg7 {[%emt 0:01:39]} 11. h3 {[%emt 0:01:59]}
Bxf3 {[%emt 0:01:01]} 12. Qxf3 {[%emt 0:00:22]} c4 {[%emt 0:01:13]} 13. g4 {
[%emt 0:21:37]} cxb3 {[%emt 0:01:17]} 14. axb3 {[%emt 0:00:05]} O-O {[%emt 0:
00:00]} 15. f5 {[%emt 0:00:47]} Qa5 {[%emt 0:07:22]} 16. g5 {[%emt 0:04:41]}
Nh5 {[%emt 0:03:27]} 17. f6 {[%emt 0:01:22]} Bh8 {[%emt 0:01:13]} 18. Nd5 {
[%emt 0:00:28]} Rfe8 {[%emt 0:00:23]} 19. Rdg1 {[%emt 0:02:37]} Rac8 {[%emt 0:
00:00]} 20. Rg4 {[%emt 0:05:05]} Qc5 {[%emt 0:01:47]} 21. Bc3 {[%emt 0:02:48]}
a5 {[%emt 0:01:48]} 22. Qe3 {[%emt 0:10:03]} Qxe3 {[%emt 0:11:23]} 23. dxe3 {
[%emt 0:00:07]} Rc5 {[%emt 0:03:15]} 24. Kd2 {[%emt 0:02:51]} Kf8 {[%emt 0:00:
00]} 25. Ra1 {[%emt 0:00:14]} Rxc3 {[%emt 0:06:21]} 26. Kxc3 {[%emt 0:00:31]}
Rc8+ {[%emt 0:01:24]} 27. Kd3 {[%emt 0:00:06]} Ra8 {[%emt 0:01:09]} 28. c4 {
[%emt 0:00:21]} Ra7 {[%emt 0:01:13]} 29. Ra4 {[%emt 0:00:41]} h6 {[%emt 0:00:
00]} 30. h4 {[%emt 0:00:05]} Ke8 {[%emt 0:01:02]} 31. b4 {[%emt 0:00:30]} b6 {
[%emt 0:01:00]} 32. Nxb6 {[%emt 0:00:09]} Bxf6 {[%emt 0:00:39]} 33. gxf6 {
[%emt 0:00:07]} Nxf6 {[%emt 0:00:04]} 34. Rg2 {[%emt 0:00:19]} Rb7 {[%emt 0:00:
00]} 35. bxa5 {[%emt 0:00:07]} Kd8 {[%emt 0:00:22]} 36. a6 {[%emt 0:01:59]} Ra7
{[%emt 0:01:19]} 37. Rb2 {[%emt 0:00:51]} 1-0

[Event "44th Chess Olympiad Women 2022"]
[Site "Chennai"]
[Date "2022.08.06"]
[Round "8.31"]
[White "Roepke, Sofia"]
[Black "Azhar, Puteri Rifqah Fahad"]
[Result "1/2-1/2"]
[WhiteElo "1869"]
[BlackElo "1940"]
[Annotator "NA RC"]
[PlyCount "56"]
[EventDate "2022.??.??"]
[TimeControl "60"]

1. e4 {[%emt 0:00:04]} c5 {[%emt 0:00:26]} 2. Nf3 {[%emt 0:00:04]} e6 {[%emt 0:
00:00]} 3. c3 {[%emt 0:00:20]} Nf6 {[%emt 0:00:19]} 4. Bd3 {[%emt 0:00:29]} d5
{[%emt 0:01:13]} 5. e5 {[%emt 0:00:29]} Nfd7 {[%emt 0:00:18]} 6. Bc2 {[%emt 0:
00:00]} Qc7 {[%emt 0:05:20]} 7. d4 {[%emt 0:02:44]} Be7 {[%emt 0:00:29]} 8. O-O
{[%emt 0:01:33]} h6 {[%emt 0:01:58]} 9. a3 {[%emt 0:30:43]} b6 {[%emt 0:03:04]}
10. Be3 {[%emt 0:10:44]} Ba6 {[%emt 0:06:00]} 11. Re1 {[%emt 0:00:27]} Nc6 {
[%emt 0:00:16]} 12. b4 {[%emt 0:08:57]} Rc8 {[%emt 0:06:01]} 13. Bb3 {[%emt 0:
00:00]} Bb7 {[%emt 0:17:56]} 14. Qe2 {[%emt 0:07:39]} a6 {[%emt 0:01:59]} 15.
Nbd2 {[%emt 0:00:59]} cxd4 {[%emt 0:05:21]} 16. cxd4 {[%emt 0:00:36]} b5 {
[%emt 0:00:17]} 17. Reb1 {[%emt 0:13:57]} Nb6 {[%emt 0:01:57]} 18. Ne1 {
[%emt 0:00:36]} Nc4 {[%emt 0:03:15]} 19. Nd3 {[%emt 0:02:25]} Rb8 {[%emt 0:00:
00]} 20. Bd1 {[%emt 0:01:52]} O-O {[%emt 0:03:48]} 21. Nb3 {[%emt 0:01:06]} a5
{[%emt 0:05:37]} 22. Nbc5 {[%emt 0:00:21]} axb4 {[%emt 0:00:56]} 23. axb4 {
[%emt 0:00:22]} Ra8 {[%emt 0:00:59]} 24. Bb3 {[%emt 0:03:31]} Na3 {[%emt 0:00:
00]} 25. Rb2 {[%emt 0:01:13]} Nc4 {[%emt 0:00:08]} 26. Rbb1 {[%emt 0:00:49]}
Na3 {[%emt 0:00:42]} 27. Rb2 {[%emt 0:00:05]} Nc4 {[%emt 0:00:05]} 28. Rbb1 {
[%emt 0:00:21]} Na3 {[%emt 0:01:19]} 1/2-1/2

[Event "44th Chess Olympiad Women 2022"]
[Site "Chennai"]
[Date "2022.08.06"]
[Round "8.31"]
[White "Silvera, Pilar"]
[Black "Chong, Kai Ni Agnes"]
[Result "0-1"]
[WhiteElo "1436"]
[BlackElo "1909"]
[Annotator "NA RC"]
[PlyCount "50"]
[EventDate "2022.??.??"]
[TimeControl "60"]

1. e4 {[%emt 0:00:04]} c5 {[%emt 0:00:05]} 2. Nf3 {[%emt 0:00:11]} d6 {[%emt 0:
00:00]} 3. d4 {[%emt 0:00:10]} cxd4 {[%emt 0:00:06]} 4. Nxd4 {[%emt 0:00:10]}
Nf6 {[%emt 0:00:08]} 5. Nc3 {[%emt 0:00:11]} a6 {[%emt 0:00:08]} 6. h3 {
[%emt 0:00:13]} e5 {[%emt 0:00:11]} 7. Nb3 {[%emt 0:00:11]} Be6 {[%emt 0:00:42]
} 8. f4 {[%emt 0:00:38]} exf4 {[%emt 0:01:24]} 9. Bxf4 {[%emt 0:00:24]} Nc6 {
[%emt 0:00:50]} 10. Qd2 {[%emt 0:02:03]} b5 {[%emt 0:01:46]} 11. a3 {[%emt 0:
00:00]} Be7 {[%emt 0:06:06]} 12. Be2 {[%emt 0:35:10]} Rc8 {[%emt 0:06:33]} 13.
O-O {[%emt 0:09:42]} O-O {[%emt 0:02:37]} 14. Nd4 {[%emt 0:04:39]} Nxd4 {
[%emt 0:02:36]} 15. Qxd4 {[%emt 0:00:18]} d5 {[%emt 0:00:18]} 16. Qd3 {[%emt 0:
00:00]} d4 {[%emt 0:16:44]} 17. Nd1 {[%emt 0:27:19]} Qb6 {[%emt 0:04:03]} 18.
Kh1 {[%emt 0:01:19]} Bc4 {[%emt 0:01:41]} 19. Qf3 {[%emt 0:00:39]} Bxe2 {
[%emt 0:00:19]} 20. Qxe2 {[%emt 0:00:03]} Qc6 {[%emt 0:00:19]} 21. e5 {[%emt 0:
00:00]} Nd5 {[%emt 0:01:06]} 22. Rc1 {[%emt 0:00:51]} Nxf4 {[%emt 0:00:37]} 23.
Rxf4 {[%emt 0:01:46]} Bg5 {[%emt 0:00:19]} 24. Rf6 {[%emt 0:02:31]} gxf6 {
[%emt 0:02:09]} 25. exf6 {[%emt 0:03:20]} Qxf6 {[%emt 0:00:13]} 0-1

[Event "44th Chess Olympiad Women 2022"]
[Site "Chennai"]
[Date "2022.08.06"]
[Round "8.31"]
[White "Sim, Jia Ru"]
[Black "Malan, Lucia"]
[Result "1-0"]
[WhiteElo "2005"]
[BlackElo "1741"]
[Annotator "NA RC"]
[PlyCount "107"]
[EventDate "2022.??.??"]
[TimeControl "60"]

1. e4 {[%emt 0:00:04]} e5 {[%emt 0:00:07]} 2. Nf3 {[%emt 0:00:07]} Nc6 {
[%emt 0:00:05]} 3. Bb5 {[%emt 0:00:07]} a6 {[%emt 0:00:06]} 4. Ba4 {[%emt 0:00:
00]} Nf6 {[%emt 0:00:36]} 5. O-O {[%emt 0:00:11]} Be7 {[%emt 0:00:17]} 6. Re1 {
[%emt 0:00:14]} b5 {[%emt 0:00:42]} 7. Bb3 {[%emt 0:00:06]} O-O {[%emt 0:00:12]
} 8. a4 {[%emt 0:00:43]} Bb7 {[%emt 0:01:58]} 9. d3 {[%emt 0:00:32]} d6 {
[%emt 0:01:50]} 10. Nbd2 {[%emt 0:01:18]} Nb8 {[%emt 0:02:41]} 11. Nf1 {
[%emt 0:03:43]} Nbd7 {[%emt 0:00:55]} 12. c3 {[%emt 0:02:43]} Nc5 {[%emt 0:00:
00]} 13. Ng3 {[%emt 0:05:18]} bxa4 {[%emt 0:05:56]} 14. Bxa4 {[%emt 0:01:04]}
Nxa4 {[%emt 0:00:26]} 15. Qxa4 {[%emt 0:00:12]} g6 {[%emt 0:04:48]} 16. Bh6 {
[%emt 0:12:57]} Re8 {[%emt 0:04:27]} 17. h3 {[%emt 0:02:31]} Qd7 {[%emt 0:00:
00]} 18. Qc2 {[%emt 0:05:39]} c5 {[%emt 0:06:42]} 19. Qd2 {[%emt 0:05:59]} Qb5
{[%emt 0:11:57]} 20. Nf5 {[%emt 0:07:34]} Nd7 {[%emt 0:11:36]} 21. Nxe7+ {
[%emt 0:07:04]} Rxe7 {[%emt 0:00:07]} 22. b4 {[%emt 0:09:42]} cxb4 {[%emt 0:00:
00]} 23. cxb4 {[%emt 0:00:09]} Nb6 {[%emt 0:04:25]} 24. Ra5 {[%emt 0:02:33]}
Qe8 {[%emt 0:02:41]} 25. Nh2 {[%emt 0:03:21]} Rc7 {[%emt 0:07:27]} 26. Ng4 {
[%emt 0:04:33]} Qe6 {[%emt 0:01:07]} 27. Qe3 {[%emt 0:04:59]} Nd7 {[%emt 0:00:
00]} 28. d4 {[%emt 0:00:33]} Rac8 {[%emt 0:01:04]} 29. d5 {[%emt 0:01:50]} Qe7
{[%emt 0:00:13]} 30. Raa1 {[%emt 0:04:23]} Rc3 {[%emt 0:00:48]} 31. Qa7 {
[%emt 0:00:42]} R8c7 {[%emt 0:00:19]} 32. Rac1 {[%emt 0:00:49]} Rxc1 {[%emt 0:
00:00]} 33. Rxc1 {[%emt 0:00:07]} Rxc1+ {[%emt 0:00:05]} 34. Bxc1 {[%emt 0:00:
00]} Nf8 {[%emt 0:00:46]} 35. h4 {[%emt 0:05:41]} h5 {[%emt 0:00:40]} 36. Bg5 {
[%emt 0:00:28]} Qc7 {[%emt 0:00:23]} 37. Nf6+ {[%emt 0:00:10]} Kh8 {[%emt 0:00:
00]} 38. Ne8 {[%emt 0:00:45]} Qd7 {[%emt 0:00:40]} 39. Qb8 {[%emt 0:01:20]} Qc8
{[%emt 0:00:31]} 40. Qxc8 {[%emt 0:00:10]} Bxc8 {[%emt 0:00:04]} 41. Nxd6 {
[%emt 0:30:06]} Bd7 {[%emt 0:01:09]} 42. Nxf7+ {[%emt 0:00:00]} Kg7 {[%emt 0:
00:00]} 43. Nxe5 {[%emt 0:00:00]} Bb5 {[%emt 0:00:54]} 44. f4 {[%emt 0:00:00]}
Nd7 {[%emt 0:01:14]} 45. Nxd7 {[%emt 0:00:00]} Bxd7 {[%emt 0:00:07]} 46. Kf2 {
[%emt 0:00:00]} Kf7 {[%emt 0:00:44]} 47. Ke3 {[%emt 0:00:00]} Bg4 {[%emt 0:00:
00]} 48. Kd4 {[%emt 0:00:00]} Ke8 {[%emt 0:01:52]} 49. Kc5 {[%emt 0:00:00]} Be2
{[%emt 0:01:48]} 50. Kd6 {[%emt 0:00:00]} Bd3 {[%emt 0:01:11]} 51. e5 {[%emt 0:
00:00]} Bf5 {[%emt 0:00:18]} 52. e6 {[%emt 0:00:00]} Be4 {[%emt 0:02:07]} 53.
Ke5 {[%emt 0:00:00]} Bxg2 {[%emt 0:00:08]} 54. d6 {[%emt 0:00:00]} 1-0

[Event "44th Chess Olympiad Women 2022"]
[Site "Chennai"]
[Date "2022.08.06"]
[Round "8.32"]
[White "Abaeva, Aiana"]
[Black "Guerrero Rodriguez, Alejandra"]
[Result "0-1"]
[WhiteElo "1595"]
[BlackElo "2006"]
[Annotator "NA RC"]
[PlyCount "122"]
[EventDate "2022.??.??"]
[TimeControl "60"]

1. e4 {[%emt 0:00:04]} c5 {[%emt 0:00:09]} 2. Nf3 {[%emt 0:00:17]} g6 {[%emt 0:
00:00]} 3. d4 {[%emt 0:00:36]} cxd4 {[%emt 0:00:33]} 4. Nxd4 {[%emt 0:00:58]}
Bg7 {[%emt 0:00:18]} 5. Be3 {[%emt 0:02:25]} Nc6 {[%emt 0:01:01]} 6. Nc3 {
[%emt 0:03:07]} Nf6 {[%emt 0:00:34]} 7. Be2 {[%emt 0:00:42]} O-O {[%emt 0:00:
00]} 8. O-O {[%emt 0:02:37]} d5 {[%emt 0:02:30]} 9. exd5 {[%emt 0:20:55]} Nxd5
{[%emt 0:05:13]} 10. Nxd5 {[%emt 0:03:39]} Nxd4 {[%emt 0:01:33]} 11. Bxd4 {
[%emt 0:00:19]} Qxd5 {[%emt 0:00:24]} 12. Bxg7 {[%emt 0:00:17]} Qxd1 {[%emt 0:
00:00]} 13. Raxd1 {[%emt 0:00:16]} Kxg7 {[%emt 0:00:09]} 14. Bf3 {[%emt 0:00:
00]} Bf5 {[%emt 0:02:10]} 15. b3 {[%emt 0:01:23]} Rac8 {[%emt 0:03:33]} 16. c4
{[%emt 0:02:14]} Rc7 {[%emt 0:01:36]} 17. Rd2 {[%emt 0:02:42]} a5 {[%emt 0:00:
00]} 18. Rfd1 {[%emt 0:12:40]} a4 {[%emt 0:05:32]} 19. Rd8 {[%emt 0:02:40]} Bc2
{[%emt 0:05:30]} 20. Rxf8 {[%emt 0:06:05]} Bxd1 {[%emt 0:01:25]} 21. Rb8 {
[%emt 0:08:23]} axb3 {[%emt 0:02:22]} 22. axb3 {[%emt 0:00:09]} Bxb3 {[%emt 0:
00:00]} 23. Rxb7 {[%emt 0:00:10]} Rxb7 {[%emt 0:01:01]} 24. Bxb7 {[%emt 0:00:
00]} Bxc4 {[%emt 0:00:06]} 25. f4 {[%emt 0:00:15]} Kf6 {[%emt 0:04:52]} 26. Kf2
{[%emt 0:05:49]} g5 {[%emt 0:01:42]} 27. g3 {[%emt 0:00:51]} gxf4 {[%emt 0:00:
00]} 28. gxf4 {[%emt 0:00:07]} Kf5 {[%emt 0:00:50]} 29. Kf3 {[%emt 0:00:49]}
Bd3 {[%emt 0:00:56]} 30. Bc6 {[%emt 0:03:42]} Bc2 {[%emt 0:00:52]} 31. h3 {
[%emt 0:01:18]} e5 {[%emt 0:05:31]} 32. fxe5 {[%emt 0:03:33]} Kxe5 {[%emt 0:00:
00]} 33. h4 {[%emt 0:02:04]} f5 {[%emt 0:01:23]} 34. Kf2 {[%emt 0:01:14]} Kf4 {
[%emt 0:01:56]} 35. Bf3 {[%emt 0:00:21]} Be4 {[%emt 0:02:37]} 36. Bh5 {[%emt 0:
00:00]} Bd3 {[%emt 0:00:48]} 37. Bf3 {[%emt 0:00:18]} Bf1 {[%emt 0:00:50]} 38.
Bh5 {[%emt 0:02:02]} Bh3 {[%emt 0:00:15]} 39. Bf7 {[%emt 0:00:37]} Kg4 {
[%emt 0:00:59]} 40. h5 {[%emt 0:01:17]} Kg5 {[%emt 0:01:47]} 41. h6 {[%emt 0:
00:00]} Kxh6 {[%emt 0:03:15]} 42. Kg3 {[%emt 0:00:14]} Bg4 {[%emt 0:00:27]} 43.
Kh4 {[%emt 0:01:25]} Kg7 {[%emt 0:00:36]} 44. Be8 {[%emt 0:03:13]} Kf6 {
[%emt 0:00:17]} 45. Bd7 {[%emt 0:00:17]} h6 {[%emt 0:01:53]} 46. Bc8 {[%emt 0:
00:00]} Be2 {[%emt 0:00:33]} 47. Kg3 {[%emt 0:02:50]} Kg5 {[%emt 0:01:02]} 48.
Bb7 {[%emt 0:02:03]} h5 {[%emt 0:00:48]} 49. Bc6 {[%emt 0:05:06]} h4+ {[%emt 0:
00:00]} 50. Kf2 {[%emt 0:01:05]} Bd3 {[%emt 0:00:11]} 51. Bg2 {[%emt 0:01:37]}
Be4 {[%emt 0:02:44]} 52. Bf1 {[%emt 0:01:28]} f4 {[%emt 0:03:21]} 53. Bh3 {
[%emt 0:00:16]} Bf5 {[%emt 0:00:23]} 54. Bg2 {[%emt 0:00:57]} h3 {[%emt 0:00:
00]} 55. Bh1 {[%emt 0:00:49]} Bg4 {[%emt 0:00:31]} 56. Bc6 {[%emt 0:00:41]} Kf6
{[%emt 0:00:13]} 57. Bb7 {[%emt 0:00:33]} Ke5 {[%emt 0:00:56]} 58. Bc6 {
[%emt 0:01:06]} Bf5 {[%emt 0:00:19]} 59. Kg1 {[%emt 0:05:48]} Kd4 {[%emt 0:00:
00]} 60. Kh2 {[%emt 0:00:29]} Ke3 {[%emt 0:00:19]} 61. Bb5 {[%emt 0:00:34]} f3
{[%emt 0:00:49]} 0-1

[Event "44th Chess Olympiad Women 2022"]
[Site "Chennai"]
[Date "2022.08.06"]
[Round "8.32"]
[White "Corrales Jimenez, Zenia"]
[Black "Samaganova, Alexandra"]
[Result "1-0"]
[WhiteElo "2143"]
[BlackElo "1864"]
[Annotator "NA RC"]
[PlyCount "67"]
[EventDate "2022.??.??"]
[TimeControl "60"]

1. e4 {[%emt 0:00:04]} c5 {[%emt 0:00:12]} 2. Nf3 {[%emt 0:00:16]} e6 {[%emt 0:
00:00]} 3. d4 {[%emt 0:00:36]} cxd4 {[%emt 0:00:10]} 4. Nxd4 {[%emt 0:00:05]}
a6 {[%emt 0:00:10]} 5. c4 {[%emt 0:00:15]} Qc7 {[%emt 0:01:19]} 6. Be2 {
[%emt 0:00:54]} Nf6 {[%emt 0:01:48]} 7. Nc3 {[%emt 0:00:10]} Bb4 {[%emt 0:00:
00]} 8. Nc2 {[%emt 0:00:49]} Be7 {[%emt 0:08:06]} 9. O-O {[%emt 0:01:51]} O-O {
[%emt 0:03:59]} 10. f4 {[%emt 0:03:35]} d6 {[%emt 0:02:41]} 11. Qd3 {[%emt 0:
00:00]} Nbd7 {[%emt 0:01:55]} 12. b4 {[%emt 0:02:44]} b6 {[%emt 0:07:17]} 13.
Bb2 {[%emt 0:02:06]} Bb7 {[%emt 0:00:34]} 14. Rac1 {[%emt 0:01:06]} Rac8 {
[%emt 0:00:29]} 15. a3 {[%emt 0:00:14]} Qb8 {[%emt 0:02:47]} 16. Qg3 {[%emt 0:
00:00]} e5 {[%emt 0:13:07]} 17. Ne3 {[%emt 0:34:36]} Nxe4 {[%emt 0:09:59]} 18.
Nxe4 {[%emt 0:15:54]} Bxe4 {[%emt 0:00:08]} 19. fxe5 {[%emt 0:00:22]} Nxe5 {
[%emt 0:06:13]} 20. Bg4 {[%emt 0:03:47]} Rcd8 {[%emt 0:19:04]} 21. Bf5 {
[%emt 0:06:31]} Bc6 {[%emt 0:07:32]} 22. Ng4 {[%emt 0:09:19]} Ng6 {[%emt 0:00:
00]} 23. Qc3 {[%emt 0:01:27]} Ne5 {[%emt 0:02:22]} 24. Qh3 {[%emt 0:02:15]} g6
{[%emt 0:00:05]} 25. Rce1 {[%emt 0:04:05]} f6 {[%emt 0:00:27]} 26. Qg3 {
[%emt 0:00:47]} Bd7 {[%emt 0:01:16]} 27. Nxe5 {[%emt 0:04:29]} fxe5 {[%emt 0:
00:00]} 28. Bxg6 {[%emt 0:00:46]} Kh8 {[%emt 0:00:42]} 29. Rxf8+ {[%emt 0:00:
00]} Rxf8 {[%emt 0:00:10]} 30. Rxe5 {[%emt 0:00:16]} dxe5 {[%emt 0:00:51]} 31.
Bxe5+ {[%emt 0:00:18]} Bf6 {[%emt 0:00:16]} 32. Bxf6+ {[%emt 0:00:24]} Kg8 {
[%emt 0:00:38]} 33. Bxh7+ {[%emt 0:00:13]} Kf7 {[%emt 0:00:06]} 34. Qg7+ {
[%emt 0:00:04]} 1-0